Cogmind - Beta 17.1 @@@ ROGUE MODE // 2026.09.09 @ 18:22:16 Player: Caluan Result: Self-destructed Performance ------------- Evolutions (1) 500 Regions Visited (3) 600 Robots Destroyed (36) 180 Value Destroyed (788) 788 Prototype IDs (1) 20 Alien Tech Used (0) 0 Bonus (0) 0 TOTAL SCORE: 2088 Bonus ------- None Cogmind --------- Core Integrity 105/400 Matter 230/300 Energy 85/100 System Corruption 0% Temperature Cool (0) Movement Core (350) Ox6 Location -9/Materials Parts ------- > --- POWER (1) -------- (None) > --- PROPULSION (3) --- (None) > --- UTILITY (3) ------ Large Storage Unit Improved Targeting Computer > --- WEAPON (2) ------- Datajack > --- INVENTORY (15) --- Light Ion Engine Light Nuclear Core Improved Heat Sink High-capacity Battery (250) Peak State ------------ > --- POWER ------------ Heavy Ion Engine > --- PROPULSION ------- Light Treads Light Treads Light Treads > --- UTILITY ---------- Large Storage Unit Improved Targeting Computer Propulsion Shielding > --- WEAPON ----------- Light Assault Rifle > --- INVENTORY -------- Ion Engine Light Ion Engine Light Nuclear Core Improved Heat Sink High-capacity Battery Mini Grenade Launcher Datajack [Rating: 12] Favorites ----------- Power Light Ion Engine Engine Light Ion Engine Propulsion Light Treads Treads Light Treads Utility Large Storage Unit Storage Large Storage Unit Processor Improved Targeting Computer Protection Propulsion Shielding Weapon Assault Rifle Energy Gun Small Laser Ballistic Gun Assault Rifle Launcher Mini Grenade Launcher Special Melee Weapon Datajack Build | -11 -10 -10 -9 ------- Run | Yrd Mat Min Mat Slots Evolved 2 | . . . 2 Power . | . . . . Propulsion 1 | . . . 1 Utility 1 | . . . 1 Weapon . | . . . . Parts Attached 22 | 5 4 6 7 Power 4 | 1 . 2 1 Engine 4 | 1 . 2 1 Core . | . . . . Reactor . | . . . . Propulsion 6 | 2 . 2 2 Treads 6 | 2 . 2 2 Leg . | . . . . Wheel . | . . . . Hover . | . . . . Flight . | . . . . Utility 5 | . 3 . 2 Device . | . . . . Storage 1 | . 1 . . Processor 1 | . . . 1 Hackware . | . . . . Protection 3 | . 2 . 1 Artifact . | . . . . Weapon 7 | 2 1 2 2 Energy Gun 1 | . . . 1 Energy Cannon . | . . . . Ballistic Gun 4 | 2 1 1 . Ballistic Cannon . | . . . . Launcher 1 | . . . 1 Special Weapon . | . . . . Impact Weapon . | . . . . Slashing Weapon . | . . . . Piercing Weapon . | . . . . Special Melee Weapon 1 | . . 1 . Unidentified Prototypes 1 | . . . 1 Parts Lost 17 | . 1 6 10 Power 3 | . . 1 2 Propulsion 6 | . . 2 4 Utility 3 | . 1 1 1 Weapon 5 | . . 2 3 Highest Loss Streak 10 | . 1 3 10 To Critical Strikes . | . . . . Average Backups 7 | . 6 10 8 Power 2 | . 2 2 2 Propulsion 1 | . 1 3 1 Utility 2 | . 1 3 2 Weapon . | . . . . Tool/Special . | . . . . Unused Backups 7 | . 1 2 4 Power 2 | . . . 2 Propulsion 1 | . . 1 . Utility 3 | . . 1 2 Weapon . | . . . . Tool/Special 1 | . 1 . . Average Slot Usage (%) 86 | . 89 95 67 Engine 13 | . 14 14 10 Treads 26 | . 28 26 21 Storage 10 | . 9 14 11 Processor 1 | . . . 9 Protection 7 | . 8 11 . Ballistic Gun 23 | . 28 24 10 Special Melee Weapon 1 | . . 2 2 Peak Build Rating 12 | 5 8 8 12 Average Rating 7 | 4 6 7 9 On Entrance 5 | . 5 8 7 Avg Prop Armor Cover (%) . | . . . . Naked Turns . | . . . . Heaviest Build 30 | 7 27 28 30 Greatest Support 40 | 40 40 40 40 Greatest Overweight (x) 1 | . . 1 1 Average Overweight (x) . | . . . . Largest Inventory Capacity 15 | 5 15 15 15 Average Capacity 12 | 5 11 15 15 Most Carried 13 | 2 12 13 10 Average Carried 7 | . 6 10 8 Final Capacity 15 | 5 15 15 15 Final Carried 12 | 1 12 8 4 Class Distribution -------------------- 92% | Mutant 7% | Scavenger-Mutant Dominant Class ---------------- Mutant | -10/Materials Mutant | -10/Mines Mutant | -9/Materials Resources | -11 -10 -10 -9 ----------- Run | Yrd Mat Min Mat Matter Collected 649 | 246 306 77 20 Remotely . | . . . . Salvage Created 926 | . 555 177 194 Parts 73 | . 46 10 17 Haulers Intercepted 2 | . 2 . . Recyclers Shooed 1 | . . 1 . Parts Field Recycled . | . . . . Retrieved Matter . | . . . . Parts Self-Destructed . | . . . . Prevented . | . . . . Parts Restored . | . . . . Kills | -11 -10 -10 -9 ------- Run | Yrd Mat Min Mat Combat Hostiles Destroyed 30 | . 17 4 9 Guns 23 | . 17 4 2 AOE 7 | . . . 7 Classes Destroyed 6 | . 5 . 1 Hauler 2 | . 2 . . Operator 2 | . 2 . . Watcher 2 | . 2 . . Swarmer 15 | . 11 . 4 Grunt 14 | . 6 4 4 Sentry 1 | . . . 1 Best Kill Streak 8 | . 5 2 8 Combat Bots Only 8 | . 3 2 8 Max Kills in Single Turn 5 | . 2 2 5 Gunslinging 1 | . 1 1 . Exploded 5 | . . . 5 Melee . | . . . . Uniques/NPCs Destroyed . | . . . . Combat | -11 -10 -10 -9 -------- Run | Yrd Mat Min Mat Hostile Shots Fired 222 | . 90 44 88 Missed 52 | . 27 11 14 Hits 170 | . 63 33 74 Melee 8 | . . . 8 Projectile 162 | . 63 33 66 Critical Strikes 6 | . 2 . 4 Actively Blocked 1 | . . . 1 Damage Taken 2179 | . 616 463 1100 Core 524 | . 112 117 295 Absorbed by Shields . | . . . . Redirected to Shielding 159 | . 54 54 51 Core Remaining (%) 54 | 100 . 8 . Volleys Fired 128 | . 59 27 42 Largest 2 | . 2 2 1 Hottest 40 | . 40 40 40 Shots Fired 203 | . 118 43 42 Gun 201 | . 118 43 40 Cannon . | . . . . Launcher 2 | . . . 2 Special . | . . . . Kinetic 191 | . 118 43 30 Thermal 10 | . . . 10 Explosive 2 | . . . 2 Electromagnetic . | . . . . Robot Hit Streak 23 | . 13 8 23 Robot Miss Streak 4 | . 4 3 2 Penetration Max . | . . . . Secondary Targets 3 | . 2 1 . Max Gunslinging Chain 1 | . 1 1 . Shots Hit Robots 143 | . 74 29 40 Core Hits 64 | . 35 13 16 Critical Kills 1 | . 1 . . Critical Parts Destroyed . | . . . . Critical Strikes 1 | . 1 . . Destroy 1 | . 1 . . Melee Attacks 2 | . . 1 1 Impact . | . . . . Slashing . | . . . . Piercing . | . . . . Sneak Attacks . | . . . . Combat Hostiles . | . . . . Follow-up Attacks . | . . . . Damage Inflicted 1853 | . 871 233 749 Guns 1429 | . 863 233 333 Cannons . | . . . . Explosions 416 | . . . 416 Melee . | . . . . Ramming 8 | . 8 . . Kinetic 1322 | . 863 233 226 Thermal 107 | . . . 107 Explosive 416 | . . . 416 Electromagnetic . | . . . . Impact . | . . . . Slashing . | . . . . Piercing . | . . . . Highest Corruption . | . . . . Average Corruption . | . . . . Corruption Purged . | . . . . Corruption Blocked . | . . . . Overload Shots . | . . . . Overflow Damage 9 | . . . 9 Projectiles . | . . . . Explosions 9 | . . . 9 Melee . | . . . . Knockbacks . | . . . . Impact . | . . . . Kinetic . | . . . . Secondary . | . . . . Self-Inflicted Damage 85 | . . . 85 Shots 2 | . . . 2 Rammed 3 | . 3 . . Targets Rammed 3 | . 3 . . Kicked . | . . . . Crushed . | . . . . Highest Temperature 30 | . 27 30 7 Average Temperature 10 | . 10 10 6 Received Heat Transfer 618 | . 189 267 162 Siege Activations . | . . . . Martial Activations . | . . . . Shielding Activations . | . . . . Robots Disrupted . | . . . . Combat Hostiles . | . . . . Robots Corrupted . | . . . . Combat Hostiles . | . . . . Parts Fried . | . . . . Impact Corruptions . | . . . . Robots Melted . | . . . . Combat Hostiles . | . . . . Parts Melted . | . . . . Heat Transferred 250 | . . . 250 Parts Sabotaged . | . . . . Parts Stolen . | . . . . Parts Stripped . | . . . . Power Chain Reactions . | . . . . Alert | -11 -10 -10 -9 ------- Run | Yrd Mat Min Mat Maximum Alert Level 1 | . . . 1 Low Security (%) 99 | 100 100 100 99 Level 1 . | . . . . Level 2 . | . . . . Level 3 . | . . . . Level 4 . | . . . . Level 5 . | . . . . High Security . | . . . . Max Security . | . . . . Peak Influence 200 | . 126 50 200 Initial . | . . . . Average 29 | . 44 7 14 Influence Increases 878 | . 507 100 271 Destroy 0b10 Robot/C 600 | . 340 80 180 Destroy 0b10 Robot/NC 30 | . 30 . . Destroy Leader 138 | . 78 20 40 Successful Hack 35 | . 29 . 6 Disable Machine 15 | . . . 15 Destroy Structure 15 | . . . 15 Lose Combat Pursuer 45 | . 30 . 15 Influence Decreases 726 | . 507 100 119 Time Decay 552 | . 413 90 49 Lost Part 90 | . 10 10 70 Purge Threat 84 | . 84 . . Squads Dispatched 6 | . 3 . 3 Investigation 3 | . 1 . 2 Extermination . | . . . . Reinforcement 3 | . 2 . 1 Assault . | . . . . Garrison . | . . . . Intercept . | . . . . Searches Triggered . | . . . . Construction Impeded . | . . . . Haulers Reinforced . | . . . . Active Scanning Responses . | . . . . Cargo Convoy Interrupts . | . . . . Stealth | -11 -10 -10 -9 --------- Run | Yrd Mat Min Mat Distress Signals 3 | . 1 . 2 Communications Jammed . | . . . . Distress Signals . | . . . . Times Spotted 49 | . 26 4 19 Peak Tracking Total 9 | . 3 2 9 Tactical Retreats 3 | . 2 . 1 Traps | -11 -10 -10 -9 ------- Run | Yrd Mat Min Mat Traps Triggered 1 | . 1 . . Indirectly . | . . . . Trap Hack Attempts . | . . . . Triggered . | . . . . Disarmed . | . . . . Reprogrammed . | . . . . Reused . | . . . . Traps Extracted . | . . . . Installed . | . . . . Triggered . | . . . . Machines | -11 -10 -10 -9 ---------- Run | Yrd Mat Min Mat Machines Disabled 1 | . . . 1 Max in Single Turn 1 | . . . 1 Machines Repaired . | . . . . Machines Dismantled . | . . . . Machines Sabotaged . | . . . . Overloaded Fab Kills . | . . . . Hacking | -11 -10 -10 -9 --------- Run | Yrd Mat Min Mat Machines Accessed 8 | . 6 . 2 Terminals 7 | . 5 . 2 Fabricators . | . . . . Repair Stations . | . . . . Recycling Units 1 | . 1 . . Scanalyzers . | . . . . Garrison Access . | . . . . Total Hacks 24 | . 17 . 7 Successful 15 | . 11 . 4 Failed 9 | . 6 . 3 Catastrophic 1 | . 1 . . Database Lockouts . | . . . . Manual 20 | . 16 . 4 Terminals 23 | . 16 . 7 Fabricators . | . . . . Repair Stations . | . . . . Recycling Units 1 | . 1 . . Scanalyzers . | . . . . Garrison Access . | . . . . Terminal Hacks 6 | . 3 . 3 Record 3 | . . . 3 Part Schematic 1 | . 1 . . Branch Access Points 1 | . 1 . . Unreport Threat 1 | . 1 . . Fabricator Hacks . | . . . . Repair Station Hacks . | . . . . Recycling Unit Hacks . | . . . . Scanalyzer . | . . . . Garrison Access Hacks . | . . . . Unauthorized Hacks 9 | . 8 . 1 Terminals 8 | . 7 . 1 Track 1 | . 1 . . Assimilate 1 | . 1 . . Botnet 4 | . 4 . . Operators 2 | . 1 . 1 Fabricators . | . . . . Repair Stations . | . . . . Recycling Units 1 | . 1 . . Mask 1 | . 1 . . Scanalyzers . | . . . . Garrison Access . | . . . . Data Cores Recovered . | . . . . Used . | . . . . Hacking Detections 6 | . 4 . 2 Full Trace Events 2 | . . . 2 Feedback Events . | . . . . Feedback Blocked . | . . . . Robot Schematics Acquired . | . . . . Robots Built . | . . . . Authchips . | . . . . Time . | . . . . Total Robot Build Rating . | . . . . Part Schematics Acquired 1 | . 1 . . Parts Built . | . . . . Authchips . | . . . . Time . | . . . . Total Part Build Rating . | . . . . Part Studies Acquired . | . . . . Parts Repaired . | . . . . Time . | . . . . Parts Recycled . | . . . . Recycled Matter . | . . . . Retrieved Matter . | . . . . Retrieved Components . | . . . . Parts Scanalyzed . | . . . . Part Schematics Acquired . | . . . . Parts Damaged . | . . . . Bothacking | -11 -10 -10 -9 ------------ Run | Yrd Mat Min Mat Used RIF Installer . | . . . . Robots Hacked 1 | . . 1 . Non-combat . | . . . . Combat 1 | . . 1 . Robot Hacks Applied 1 | . . 1 . parse_system 1 | . . 1 . Relay Couplers Released . | . . . . Fabnet Peak Effective % . | . . . . Robots Rewired . | . . . . Allies Hacked . | . . . . Hacks Repelled . | . . . . Allies | -11 -10 -10 -9 -------- Run | Yrd Mat Min Mat Total Allies . | . . . . Largest Group . | . . . . Highest-Rated Group . | . . . . Highest-Rated Ally . | . . . . Total Orders . | . . . . Ally Attacks . | . . . . Total Damage . | . . . . Kills . | . . . . Allies Corrupted . | . . . . Allies Melted . | . . . . Intel | -11 -10 -10 -9 ------- Run | Yrd Mat Min Mat Active Infowar (turns) . | . . . . Robot Analysis Total . | . . . . Derelict Logs Recovered 2 | . . 2 . Drone Launches . | . . . . Drone Recoveries . | . . . . Exploration | -11 -10 -10 -9 ------------- Run | Yrd Mat Min Mat Turns Passed 2293 | 89 1291 504 409 Spaces Moved 1114 | 57 605 265 187 Core 11 | 11 . . . Treads 1103 | 46 605 265 187 Legs . | . . . . Wheels . | . . . . Hover . | . . . . Flight . | . . . . Fastest Speed 50 | 50 160 160 160 Average Speed 159 | 138 160 161 160 Slowest Speed 240 | 160 160 240 240 Overloaded Moves . | . . . . Propulsion Burnouts . | . . . . Robots Hopped . | . . . . Potential Cave-ins . | . . . . Cave-ins Triggered . | . . . . Exploration Rate (%) 37 | 4 84 52 11 Regions Visited 3 Branch Regions 1 Pre-discovered Areas . | . . . . Known Exits Taken 1 | . 1 . . Unknown Exits Taken 2 | 1 . 1 . Scrap Searched 2 | . . 2 . Spaces Dug . | . . . . Terrain Destroyed 17 | . . . 17 Melee . | . . . . Projectile . | . . . . AOE 17 | . . . 17 Terrain Rammed . | . . . . Walls Destroyed . | . . . . Machines Disabled . | . . . . Actions | -11 -10 -10 -9 --------- Run | Yrd Mat Min Mat Total 1450 | 67 817 306 260 Wait 149 | . 131 3 15 Move 1111 | 56 604 264 187 Hop . | . . . . Pick Up 27 | 6 14 3 4 Fast Attach 1 | . 1 . . Attach 20 | 5 2 5 8 Detach 1 | . . . 1 Swap 3 | . 1 1 1 Drop 5 | . 2 2 1 Fire 128 | . 59 27 42 Melee 2 | . . 1 1 Ram . | . . . . Kick . | . . . . Crush 3 | . 3 . . Escape Stasis . | . . . . Rewire . | . . . . Trap . | . . . . Miscellaneous . | . . . . Route ------- -11/Scrapyard -10/Materials (discovered 4 exits: *Mat x2 / *Min / [*Sub]) -10/Mines -9/Materials (discovered 1 exit: Mat) History --------- Turn | Location | Event 3 | -11/Scrapyard | Discovered new exit (range 16) 90 | -11/Scrapyard | Entered Materials 242 | -10/Materials | Discovered new exit (range 3) 300 | -10/Materials | Build established: Mutant 679 | -10/Materials | Discovered new exit (range 13) 790 | -10/Materials | Derelicts attacked the area 808 | -10/Materials | Identified exit to Mines 892 | -10/Materials | Discovered new exit (range 9) 1381 | -10/Materials | Entered Mines 1417 | -10/Mines | Learned location of 1 exit from Materials 1594 | -10/Mines | Core integrity fell below 50% 1636 | -10/Mines | Lost 3 parts (1p1n1w) 1686 | -10/Mines | Discovered new exit (range 7) 1783 | -10/Mines | Core integrity fell below 20% 1809 | -10/Mines | Learned Materials garrison access intel 1819 | -10/Mines | Lost 3 parts (1n1u1w) 1885 | -10/Mines | Entered Materials 1885 | -9/Materials | Evolved 2 slots: Propulsion x1, Utility x1 1886 | -9/Materials | Identified exit to Materials 2280 | -9/Materials | Core integrity fell below 50% 2293 | -9/Materials | Destroyed 8 combat bots 2294 | -9/Materials | Self-destructed Last Messages --------------- U-05 Engineer lays Concrete. U-05 Engineer builds a Wall. W-16 Scout sends out distress signal. U-05 Engineer lays Concrete. U-05 Engineer builds a Wall. U-05 Engineer lays Concrete. Ion Engine destroyed. U-05 Engineer builds a Wall. Mni. Grenade Launcher destroyed. U-05 Engineer lays Concrete. U-05 Engineer builds a Wall. C-30 ARC bursts open, deploying its payload. L-31 Rogue unfolds itself. G-34 Mercenary unfolds itself. U-05 Engineer builds a Wall. U-05 Engineer lays Concrete. Sml. Laser destroyed. U-05 Engineer lays Concrete. Jacked L-31 Rogue... K-01 Serf collects debris. Map ----- +----------------------------------------------------+ | ?????????????????????????????????????????????????? | | ?????????????????????????????????????????????????? | | ?????????????????????????????????????????????????? | | ?????????????????????????????????????????????????? | | ?????????????????????????????????????????????????? | | ?????????????????????????????????????????????????? | | ?????????????????????#???????????????????????????? | | ???????????????????? ###?????????????????????????? | | ???????????????????? ??????????????????????????? | | ?????o?????????????? ??????????????????????????? | | ???????????????????? ???????????????????????????? | | ??????????????????? ???????????????????????????? | | ??????????????????? #???????????????????????????? | | ?????????????????# #???????????????????????????? | | ?????????????????# #???????????????????????????? | | ?????????????????# #???????????????????????????? | | ?????????????????# #???????????????????????????? | | ?????????#######?# k#???????????????????????????? | | ?????????# ### %#####???????????????????????? | | ?????????# #########???????????????? | | ?????????# T # ##??????????????? | | ?????????# # T #??????????????? | | ?????????# ## #### g=# [ #???????????????? | | ?????????## ## ## lg#*%""" #???????????????? | | ??????????# #? ## l#u[""" #???????????????? | | ??????????# #? ####* u@* """ #???????????????? | | ??????????# #?###?## uu#u #???????????????? | | ??????????# #?????####% """ #???????????????? | | ??????????# #?????# * "" #???????????????? | | ??????????# #?????## # """ #???????????????? | | ??????????# #??????### # #???????????????? | | ??????????# #????????# #########???????????????? | | ??????????# #?######## #???????????????????????? | | ??????????# #?# # #???????????????????????? | | ??????????# #?# """ # #???????????????????????? | | ??????????# #?# """ + #???????????????????????? | | ??????????# #?# """ # #???????????????????????? | | ??????????# #?# # #???????????????????????? | | ??????????# #?# / # #???????????????????????? | | ??????????# #?######## #??####?????????????????? | | ??????????# #????????# #??# !##????????????????? | | ??????????# #????????# #??# !#????????????????? | | ??????????# #????????# #??# !#????????????????? | | ??????????# ########## #### !#????????????????? | | ??????????# !#????????????????? | | ??????????# ##########+#### !##????????????????? | | ??????????# #??????#! ####?????????????????? | | ??????????# #??????# #????????????????????? | | ??????????# #??????# #????????????????????? | | ??????????# #??????#* #????????????????????? | +----------------------------------------------------+ Best States ------------- Heat Dissipation 28 Energy Generation 14 Energy Capacity 280 Matter Stores 300 Matter Capacity 300 Sight Range 16 Terrain Scan Density 10 Propulsion Shielding 33 Evasion (%) 40 Targeting Accuracy 6 Recoil Reduction 3 Item Schematics ----------------- Huge Storage Unit | -10/Materials | Hacked Robot Schematics ------------------ None Fabricated ------------ Nothing Repaired ---------- Nothing Studied --------- None Alien Tech Used ----------------- None Achievements -------------- None Challenges ------------ None Game ------ Seed DamperTeslaBeacon Manual? 0 Play Time 00:15:30 Cumulative 229.9 hours Start 2026.09.09 @ 18:00:17 End 2026.09.09 @ 18:22:16 Sessions 1 Manual Loads 0 Difficulty Rogue Special Mode None Game No. 269 Rogue 269 Adventurer 0 Explorer 0 Win Type - Total 2 Types 2/0/0/0/0/0/0/0/0/0 Lore% 29 Gallery% 54 Achievement% 35 Wizard Run 0 Options --------- Layout 1 ASCII 0 Keyboard 0 Movement Numpad Keybinds 0 Fullscreen 2 Font 24/Smallcaps Map View 50x35 Zoom Use 0% Tactical HUD 0 Map Filters NONE Filters NONE Steam 1 RUN: 95e23461-23bb-4813-8c5b-37c5bd7a0b83